bitfinex/quotes_SOLUSD_20240624
["timestamp","ask_amount","ask_price","bid_price","bid_amount"]
[1719202843669,0.34,125.75,125.71,8.77831488]
[1719202843996,2.15246033,125.75,125.71,8.77831488]
[1719202844675,3.57275725,125.75,125.71,8.77831488]
[1719202844982,3.40275725,125.75,125.71,8.77831488]
[1719202845168,1.59029692,125.75,125.71,8.77831488]
[1719202850199,0.34,125.74,125.71,8.77831488]
[1719202850388,0.17,125.74,125.71,8.77831488]
[1719202851582,3.40275725,125.75,125.71,8.77831488]
[1719202851797,1.59029692,125.75,125.71,8.77831488]
[1719202851998,3.189798,125.76,125.71,8.77831488]
[1719202852199,3.189798,125.76,125.72,45.0]
[1719202854118,1.59029692,125.75,125.71,8.77831488]
[1719202857999,0.34,125.74,125.71,8.77831488]
[1719202858195,1.59029692,125.75,125.71,8.77831488]
[1719202858613,19.19,125.75,125.71,8.77831488]
[1719202859287,19.19,125.75,125.72,45.0]
[1719202860683,3.189798,125.76,125.72,45.0]
[1719202860887,22.379798,125.76,125.72,45.0]
[1719202861206,19.19,125.73,125.71,8.77831488]
[1719202861393,1.59029692,125.72,125.71,8.77831488]
[1719202861594,19.19,125.73,125.71,8.77831488]
[1719202861803,1.59029692,125.72,125.71,8.77831488]
[1719202862114,1.59029692,125.72,125.71,8.38521488]
[1719202864193,19.19,125.73,125.71,8.38521488]
[1719202864388,1.59029692,125.75,125.71,8.38521488]
[1719202864604,19.19,125.73,125.71,8.38521488]
[1719202865008,1.59029692,125.72,125.71,8.38521488]
[1719202865386,19.19,125.73,125.71,8.38521488]
[1719202866516,1.59029692,125.75,125.71,8.38521488]
[1719202866820,19.19,125.74,125.71,8.38521488]
[1719202867922,3.189798,125.76,125.72,45.0]
[1719202868221,22.379798,125.76,125.72,60.9386]
[1719202868601,3.189798,125.76,125.72,60.9386]
[1719202868806,19.19,125.77,125.73,6.5941]
[1719202868995,1.59029692,125.81,125.74,45.0]
[1719202869498,3.43045459,125.81,125.71,8.38521488]
[1719202869713,19.19,125.76,125.71,8.38521488]
[1719202870508,1.84015767,125.8,125.71,8.38521488]
[1719202870714,19.19,125.76,125.71,8.38521488]
[1719202871200,1.59029692,125.75,125.71,8.38521488]
[1719202872332,1.59029692,125.75,125.72,45.0]
[1719202873125,19.19,125.76,125.72,45.0]
[1719202873309,1.59029692,125.79,125.72,45.0]
[1719202873505,1.59029692,125.81,125.73,0.34]
[1719202873901,19.19,125.79,125.73,0.34]
[1719202875125,1.59029692,125.81,125.74,6.1421]
[1719202875328,19.19,125.79,125.74,6.1421]
[1719202875708,19.19,125.79,125.75,16.3452]
[1719202876021,1.59029692,125.81,125.75,16.3452]
[1719202877025,1.59029692,125.81,125.76,45.0]
[1719202877026,19.19,125.81,125.76,45.0]
[1719202877428,16.3452,125.84,125.76,52.9516]
[1719202877429,1.59029692,125.83,125.76,52.9516]
[1719202877721,19.19,125.83,125.77,0.17]
[1719202878097,19.19,125.83,125.77,8.2909]
[1719202878294,19.19,125.83,125.78,51.0538]
[1719202882092,1.59029692,125.87,125.78,51.0538]
[1719202882300,19.19,125.84,125.78,51.0538]
[1719202882716,1.59029692,125.83,125.78,51.0538]
[1719202883302,19.19,125.81,125.76,6.4241]
[1719202883504,1.59029692,125.8,125.76,6.4241]
[1719202883897,19.19,125.81,125.76,6.4241]
[1719202884120,19.19,125.82,125.76,6.4241]
[1719202885117,19.19,125.82,125.77,45.0]
[1719202885625,19.19,125.82,125.78,0.17]
[1719202885803,19.19,125.84,125.78,0.34]
[1719202886140,1.59029692,125.87,125.78,8.2902]
[1719202886305,27.09172259,125.89,125.76,106.4241]
[1719202886306,20.78029692,125.88,125.76,6.4241]
[1719202886624,19.19,125.83,125.77,0.17]
[1719202886969,19.19,125.83,125.76,6.4241]
[1719202888532,19.19,125.83,125.77,45.0]
[1719202890610,19.19,125.83,125.78,0.17]
[1719202890818,19.19,125.83,125.78,0.34]
[1719202892921,19.19,125.83,125.78,8.2902]
[1719202893120,1.59029692,125.87,125.79,45.0]
[1719202893330,1.59029692,125.87,125.8,0.34]
[1719202893331,19.19,125.85,125.8,0.34]
[1719202893515,19.19,125.85,125.8,0.17]
[1719202894539,19.19,125.85,125.81,6.3157]
[1719202894738,19.19,125.85,125.82,45.0]
[1719202894915,1.59029692,125.84,125.81,6.3157]
[1719202895121,1.59029692,125.84,125.78,21.6809]
[1719202896333,1.59029692,125.84,125.79,45.0]
[1719202896536,20.78029692,125.85,125.79,45.0]
[1719202897135,20.78029692,125.87,125.8,0.17]
[1719202897343,21.002461,125.89,125.8,8.289]
[1719202897514,20.78029692,125.88,125.8,0.34]
[1719202897715,19.19,125.88,125.8,0.34]
[1719202900124,19.19,125.88,125.8,8.289]
[1719202900337,19.19,125.88,125.81,45.0]
[1719202900532,19.19,125.88,125.82,0.34]
[1719202900735,20.78029692,125.91,125.84,16.2334]
[1719202900937,20.78029692,125.91,125.85,45.0]
[1719202901140,1.59029692,125.93,125.86,0.17]
[1719202901438,20.78029692,125.94,125.86,0.34]
[1719202901844,20.78029692,125.94,125.86,8.2852]
[1719202902034,20.78029692,125.94,125.87,45.0]
[1719202902235,19.19,125.94,125.88,6.66]
[1719202902545,19.19,125.94,125.89,45.0]
[1719202903827,19.19,125.94,125.9,16.2334]
[1719202904027,19.19,125.94,125.91,45.0]
[1719202906049,1.59029692,125.97,125.91,45.0]
[1719202906252,27.313887,125.99,125.91,45.0]
[1719202906253,1.59029692,125.98,125.92,0.17]
[1719202909344,1.59029692,125.98,125.92,0.34]
[1719202910255,19.19,126.0,125.93,6.5276]
[1719202910549,1.59029692,126.01,125.94,45.0]
[1719202910928,19.19,126.0,125.94,45.0]
[1719202911148,1.59029692,125.99,125.94,45.0]
[1719202911323,19.19,126.0,125.94,45.0]
[1719202911729,19.19,126.0,125.95,0.17]
[1719202912722,19.19,126.0,125.95,0.34]
[1719202915436,19.19,126.0,125.95,0.17]
[1719202915829,1.59029692,126.02,125.95,0.17]
[1719202916153,19.19,126.01,125.95,0.17]
[1719202917434,19.19,126.01,125.95,0.34]
[1719202917943,1.59029692,126.0,125.94,45.0]
[1719202918143,1.59029692,126.0,125.95,15.388]
[1719202919636,19.19,125.98,125.93,6.5276]
[1719202920428,1.59029692,125.97,125.92,16.6245]
[1719202920633,19.19,125.95,125.92,16.6245]
[1719202921052,1.59029692,125.97,125.92,16.6245]
[1719202921255,19.19,125.98,125.92,16.6245]
[1719202922153,1.59029692,125.97,125.92,16.6245]
[1719202924755,1.59029692,125.97,125.53,8.87944035]
[1719202924756,19.19,125.95,125.89,16.2896]
[1719202924966,19.19,125.92,125.87,6.5875]
[1719202925157,1.59029692,125.91,125.87,6.5875]
[1719202927053,1.59029692,125.93,125.87,6.5875]
[1719202927239,1.59029692,125.93,125.88,45.0]
[1719202927642,1.59029692,125.93,125.87,6.5875]
[1719202930134,1.59029692,125.93,125.88,45.0]
[1719202930341,19.19,125.95,125.88,52.944]
[1719202930736,1.59029692,125.94,125.88,45.0]
[1719202931439,19.19,125.95,125.88,52.9437]
[1719202931673,19.19,125.95,125.88,45.0]
[1719202932267,1.59029692,125.94,125.88,45.0]
[1719202932464,19.19,125.95,125.88,52.9439]
[1719202933367,1.59029692,125.94,125.88,45.0]
[1719202935448,19.19,125.92,125.87,6.5875]
[1719202935642,1.59029692,125.91,125.85,16.2896]
[1719202936267,19.19,125.91,125.85,16.2896]
[1719202937364,19.19,125.91,125.86,7.9452]
[1719202937546,1.59029692,125.93,125.87,7.9446]
[1719202937868,1.59029692,125.93,125.86,7.945]
[1719202938061,1.59029692,125.93,125.85,24.2353]
[1719202938242,19.19,125.94,125.87,0.17]
[1719202938442,19.19,125.94,125.87,8.1145]
[1719202938669,19.19,125.94,125.88,45.0]
[1719202938670,1.59029692,125.93,125.88,45.0]
[1719202938872,1.59029692,125.93,125.86,45.17]
[1719202939456,19.19,125.94,125.87,7.9446]
[1719202939659,11.53065062,125.99,125.88,45.17]
[1719202939963,19.19,125.95,125.88,45.17]
[1719202942447,19.19,125.95,125.88,53.1139]
[1719202943676,19.19,125.95,125.89,0.17]
[1719202944060,19.19,125.95,125.9,15.5361]
[1719202944368,19.19,125.95,125.91,45.0]
[1719202945250,6.32644179,125.99,125.91,45.0]
[1719202945450,19.19,125.98,125.91,45.0]
[1719202948685,0.34,125.97,125.91,45.0]
[1719202948875,0.34,125.97,125.9,15.5361]
[1719202950378,0.34,125.97,125.91,45.0]
[1719202950576,19.19,125.95,125.9,15.5361]
[1719202956669,6.38,125.91,125.87,22.0862]
[1719202956976,6.38,125.9,125.88,45.0]
[1719202957993,25.52,125.94,125.87,22.0862]
[1719202958166,6.38,125.88,125.84,22.1528]
[1719202958362,6.38,125.86,125.84,22.1528]
[1719202958566,0.34,125.93,125.84,22.1528]
[1719202958780,6.38,125.86,125.84,22.1528]
[1719202959684,5.2042,125.95,125.84,22.1528]
[1719202959991,6.38,125.87,125.84,30.0989]
[1719202960571,6.38,125.87,125.85,45.0]
[1719202961571,25.86,125.94,125.85,52.9458]
[1719202961772,6.38,125.88,125.85,52.9458]
[1719202962088,6.38,125.88,125.85,45.0]
[1719202962299,6.38,125.86,125.84,22.1528]
[1719202963576,6.38,125.85,125.84,22.1528]
[1719202963788,6.38,125.85,125.84,67.1528]
[1719202964171,6.38,125.86,125.84,67.1528]
[1719202964378,6.38,125.86,125.85,45.0]
[1719202964573,45.34,125.94,125.85,45.0]
[1719202964790,19.14,125.9,125.85,45.0]
[1719202966292,19.48,125.94,125.85,45.0]
[1719202967780,19.14,125.94,125.85,45.0]
[1719202969394,19.14,125.94,125.85,52.9458]
[1719202970490,19.14,125.94,125.85,45.0]
[1719202970692,19.14,125.93,125.86,0.34]
[1719202971701,19.14,125.93,125.86,8.285]
[1719202971891,19.14,125.93,125.87,45.0]
[1719202972097,19.14,125.93,125.88,0.17]
[1719202972399,25.33855776,125.95,125.88,0.17]
[1719202972600,1.81246033,125.97,125.88,0.17]
[1719202972776,1.81246033,125.97,125.89,21.4723]
[1719202972777,19.14,125.95,125.89,21.4723]
[1719202972975,19.14,125.95,125.9,45.0]
[1719202974412,19.14,125.92,125.89,15.2354]
[1719202977023,19.14,125.92,125.9,45.0]
[1719202977199,0.34,125.96,125.9,45.0]
[1719202977504,19.14,125.95,125.9,45.0]
[1719202980378,19.14,125.95,125.89,15.2354]
[1719202982076,19.14,125.95,125.86,22.4274]
[1719202982283,19.14,125.92,125.86,22.4274]
[1719202983588,19.14,125.92,125.83,23.263]
[1719202983884,19.14,125.89,125.83,23.263]
[1719202984590,6.38,125.84,125.83,23.263]
[1719202985199,6.38,125.84,125.83,68.263]
[1719202986116,0.34,125.91,125.83,68.263]
[1719202986286,0.34,125.91,125.84,45.0]
[1719202986606,19.14,125.88,125.84,45.0]
[1719202986987,0.34,125.91,125.84,45.0]
[1719202987185,19.14,125.89,125.84,45.0]
[1719202989912,19.14,125.89,125.83,23.263]
[1719202990825,19.14,125.89,125.84,45.0]
[1719202992212,6.42088754,125.91,125.84,45.0]
[1719202992523,19.14,125.86,125.8,15.4551]
[1719202993488,5.2042,125.92,125.8,15.4551]
[1719202993689,19.14,125.89,125.81,45.0]
[1719202993910,34.5951,125.89,125.81,45.0]
[1719202995591,0.17,125.88,125.81,45.0]
[1719202995793,0.34,125.88,125.81,45.0]
[1719202995999,34.5951,125.89,125.81,45.0]
[1719202996417,0.34,125.88,125.81,45.0]
[1719202996621,19.14,125.86,125.81,45.0]
[1719202996807,19.14,125.86,125.8,15.4551]
[1719202998325,19.14,125.86,125.81,45.0]
[1719202999807,19.14,125.86,125.8,15.4551]
[1719203008515,19.14,125.83,125.77,15.7672]
[1719203008716,6.39,125.78,125.77,15.7672]
[1719203009234,25.56,125.82,125.77,15.7672]
[1719203009412,6.39,125.79,125.77,15.7672]
[1719203009827,6.39,125.79,125.78,45.0]
[1719203010922,6.39,125.79,125.71,30.5410828]
[1719203011126,25.56,125.82,125.71,8.4917828]
[1719203011127,31.95,125.72,125.71,8.4917828]
[1719203011332,25.56,125.76,125.71,8.4917828]
[1719203011639,5.3742,125.78,125.71,8.4917828]
[1719203011640,6.39,125.72,125.71,8.4917828]
[1719203012137,5.3742,125.78,125.71,8.4917828]
[1719203012441,6.39,125.72,125.71,8.4917828]
[1719203012738,25.56,125.76,125.71,8.4917828]
[1719203012942,1.98246033,125.78,125.71,8.4917828]
[1719203013125,6.39,125.72,125.71,8.4917828]
[1719203014714,19.18,125.77,125.71,8.4917828]
[1719203014919,19.18,125.77,125.72,45.0]
[1719203015246,1.81246033,125.78,125.73,22.0493]
[1719203015415,1.81246033,125.78,125.74,45.34]
[1719203015615,19.18,125.84,125.75,7.9518]
[1719203015810,19.18,125.84,125.76,45.0]
[1719203016339,19.18,125.89,125.81,7.948]
[1719203016550,29.75231,125.91,125.82,45.0]
[1719203016844,6.38134044,125.92,125.84,7.9461]
[1719203017013,19.18,125.94,125.85,45.0]
[1719203017214,21.02015767,125.94,125.85,45.0]
[1719203017642,21.02015767,125.94,125.84,45.0]
[1719203020453,0.34,125.93,125.84,45.0]
[1719203021020,0.34,125.93,125.85,7.9458]
[1719203021313,0.34,125.93,125.86,45.0]
[1719203022017,1.84015767,125.94,125.86,45.0]
[1719203022246,1.84015767,125.94,125.86,52.9451]
[1719203024239,1.84015767,125.94,125.86,45.0]
[1719203024445,1.84015767,125.94,125.87,0.17]
[1719203024942,58.93231,126.0,125.87,0.17]
[1719203024943,58.93231,126.0,125.87,7.9444]
[1719203025145,2.01015767,125.99,125.88,52.9434]
[1719203025343,2.01015767,125.99,125.89,45.0]
[1719203025344,1.84015767,125.98,125.89,45.0]
[1719203025533,0.17,125.97,125.89,45.0]
[1719203025734,0.34,125.97,125.88,45.0]
[1719203027060,0.34,125.97,125.84,27.1265]
[1719203027348,1.84015767,125.96,125.84,7.9465]
[1719203027554,0.34,125.95,125.84,7.9465]
[1719203028018,0.34,125.95,125.83,21.8475]
[1719203028225,0.34,125.95,125.83,29.7947]
[1719203028450,19.18,125.94,125.83,29.7947]
[1719203028652,0.17,125.93,125.84,0.17]
[1719203028828,0.17,125.93,125.84,8.1165]
[1719203029251,0.17,125.93,125.85,45.0]
[1719203029429,0.17,125.93,125.84,45.34]
[1719203029844,0.17,125.95,125.84,45.34]
[1719203030247,0.34,125.95,125.85,7.9457]
[1719203030423,0.34,125.95,125.86,45.0]
[1719203030626,0.34,125.95,125.84,53.2862]
[1719203031154,0.34,125.95,125.84,45.34]
[1719203031341,5.5442,125.95,125.83,21.8475]
[1719203031737,19.18,125.93,125.83,21.8475]
[1719203031938,0.34,125.92,125.83,21.8475]
[1719203032459,0.34,125.92,125.83,29.7945]
[1719203032761,0.34,125.92,125.84,45.0]
[1719203033958,0.34,125.92,125.84,52.9465]
[1719203034333,0.34,125.92,125.85,7.9458]
[1719203035354,0.34,125.92,125.86,45.0]
[1719203036829,0.34,125.92,125.85,45.0]
[1719203039959,0.34,125.92,125.83,6.4733]
[1719203040171,0.34,125.92,125.82,7.9475]
[1719203040342,0.34,125.92,125.83,7.947]
[1719203040542,0.34,125.92,125.83,7.9469]
[1719203040966,1.84015767,125.91,125.84,7.9465]
[1719203041564,1.84015767,125.91,125.85,7.9459]
[1719203041954,1.84015767,125.91,125.84,7.9463]
[1719203042261,1.84015767,125.91,125.85,45.0]
[1719203042464,0.17,125.9,125.85,45.0]
[1719203042766,0.17,125.9,125.82,7.9475]
[1719203043070,1.84015767,125.91,125.83,52.9471]
[1719203044858,1.84015767,125.91,125.83,45.0]
[1719203045164,1.84015767,125.91,125.85,7.9457]
[1719203045373,1.84015767,125.91,125.86,45.0]
[1719203047553,1.84015767,125.91,125.86,52.9452]
[1719203049168,19.18,125.94,125.86,52.9452]
[1719203049371,0.17,125.93,125.86,45.0]
[1719203049666,19.18,125.94,125.86,52.945]
[1719203049863,19.18,125.94,125.87,7.9446]
[1719203050042,19.18,125.94,125.88,45.0]
[1719203050463,5.2042,125.95,125.88,45.0]
[1719203050668,5.2042,125.95,125.88,52.9437]
[1719203051265,5.2042,125.95,125.88,45.0]
[1719203051469,5.2042,125.95,125.87,45.0]
[1719203052646,5.2042,125.95,125.87,52.9444]
[1719203053355,5.2042,125.95,125.87,45.0]
[1719203053975,5.2042,125.95,125.88,7.9437]
[1719203054178,5.2042,125.95,125.89,45.0]
[1719203056473,5.2042,125.95,125.89,52.9433]
[1719203056679,6.37,125.94,125.89,52.9433]
[1719203057057,6.37,125.94,125.9,7.9425]
[1719203057279,6.37,125.94,125.91,45.0]
[1719203057476,5.2042,125.95,125.91,45.0]
[1719203057657,11.53394081,125.97,125.91,45.0]
[1719203057860,6.37,125.95,125.91,45.0]
[1719203058878,6.37,125.95,125.9,45.0]
[1719203059088,5.2042,125.97,125.9,52.9424]
[1719203059280,6.37,125.95,125.9,52.9424]
[1719203059460,6.37,125.95,125.9,45.0]
[1719203060081,5.2042,125.97,125.9,45.0]
[1719203060587,6.37,125.95,125.9,52.9426]
[1719203060756,5.2042,125.97,125.91,7.942]
[1719203060957,5.2042,125.97,125.9,59.3126]
[1719203061179,6.37,125.95,125.9,59.3126]
[1719203061558,5.2042,125.97,125.9,59.3126]
[1719203061766,5.2042,125.97,125.9,51.37]
[1719203061990,6.37,125.97,125.92,6.37]
[1719203062280,6.37,125.97,125.93,45.0]
[1719203062678,6.37,125.97,125.92,45.0]
[1719203062978,36.96971301,126.0,125.92,45.0]
[1719203063182,6.37,125.97,125.92,45.0]
[1719203063564,36.96971301,126.0,125.92,45.0]
[1719203063890,6.37,125.96,125.91,51.37]
[1719203065267,6.37,125.96,125.91,59.3121]
[1719203065477,6.37,125.96,125.91,51.37]
[1719203065682,6.37,125.97,125.91,51.37]
[1719203067873,6.37,125.97,125.91,59.312]
[1719203069488,6.37,125.97,125.92,6.37]
[1719203069693,36.96971301,126.0,125.93,45.0]
[1719203069894,6.37,125.97,125.93,45.0]
[1719203070592,11.48971301,126.0,125.93,45.0]
[1719203070794,6.37,125.98,125.92,45.0]
[1719203071998,6.37,125.97,125.92,45.0]
[1719203072493,6.37,125.96,125.91,45.0]
[1719203073284,17.85971301,126.0,125.91,52.942]
[1719203073494,11.48971301,126.0,125.92,0.17]
[1719203073670,6.37,125.98,125.92,0.34]
[1719203075297,6.37,125.97,125.9,7.9426]
[1719203075486,17.85971301,126.0,125.89,7.9431]
[1719203075689,17.85971301,126.0,125.9,6.37]
[1719203075690,6.37,125.95,125.9,6.37]
[1719203075884,6.37,125.95,125.9,14.3127]
[1719203076195,6.37,125.95,125.9,6.37]
[1719203076508,6.37,125.96,125.9,6.37]
[1719203076792,6.37,125.96,125.91,45.0]
[1719203076967,6.37,125.96,125.91,51.37]
[1719203078500,6.37,125.97,125.91,52.9421]
[1719203078684,6.37,125.97,125.91,45.0]
[1719203078885,6.37,125.97,125.91,51.37]
[1719203079091,0.17,125.99,125.92,6.37]
[1719203079278,6.37,125.98,125.93,45.0]
[1719203079997,11.48971301,126.0,125.93,45.0]
[1719203080179,6.37,125.98,125.92,51.37]
[1719203080378,6.37,125.98,125.93,6.37]
[1719203080682,6.37,125.98,125.94,45.0]
[1719203081508,5.2042,126.0,125.94,51.37]
[1719203081811,11.5742,126.0,125.94,51.37]
[1719203081983,5.2042,126.0,125.94,59.3102]
[1719203082176,11.5742,126.0,125.95,6.37]
[1719203082403,11.5742,126.0,125.96,45.0]
[1719203082605,5.2042,126.0,125.96,45.0]
[1719203082817,11.5742,126.03,125.96,51.37]
[1719203082984,5.2042,126.03,125.96,51.37]
[1719203083303,6.37,126.02,125.96,51.37]
[1719203083501,6.37,126.02,125.97,6.37]
[1719203083709,6.37,126.02,125.98,45.0]
[1719203083915,5.2042,126.07,125.99,6.37]
[1719203084076,5.2042,126.07,126.01,6.37]
[1719203084398,0.8271739,126.08,126.02,45.0]
[1719203084581,0.8271739,126.08,126.07,6.37]
[1719203085091,0.8271739,126.08,126.07,45.0]
[1719203085293,0.8271739,126.08,126.07,6.37]
[1719203085486,0.8271739,126.08,126.07,51.37]
[1719203086111,0.8271739,126.08,126.07,45.0]
[1719203086423,0.8271739,126.08,126.05,14.11]
[1719203087587,0.8271739,126.08,126.05,6.1773]
[1719203087790,0.8271739,126.08,126.05,14.1106]
[1719203088011,0.8271739,126.08,126.05,6.1773]
[1719203088217,0.8271739,126.08,126.07,7.9321]
[1719203088392,0.8271739,126.08,126.06,8.1024]
[1719203090293,0.8271739,126.08,126.07,0.17]
[1719203090511,0.8271739,126.08,126.07,8.1021]
[1719203090708,0.8271739,126.08,126.07,8.2721]
[1719203093817,5.2042,126.18,126.1,7.93]
[1719203095104,5.2042,126.18,126.12,7.9285]
[1719203096327,0.8271739,126.2,126.13,7.9282]
[1719203097213,0.8271739,126.2,126.12,7.9287]
[1719203098624,0.8271739,126.2,126.15,7.9269]
[1719203098932,0.8271739,126.2,126.14,7.9274]
[1719203099105,0.8271739,126.2,126.15,0.17]
[1719203099933,0.8271739,126.2,126.15,8.0969]
[1719203100228,0.8271739,126.2,126.15,0.17]
[1719203100535,0.8271739,126.2,126.17,7.9258]
[1719203100736,0.8271739,126.2,126.18,7.925]
[1719203100908,0.8271739,126.2,126.17,7.9253]
[1719203101306,0.8271739,126.2,126.16,24.679]
[1719203101519,0.8271739,126.2,126.17,7.9257]
[1719203101725,0.8271739,126.2,126.18,0.34]
[1719203102031,0.8271739,126.2,126.17,7.9252]
[1719203102227,0.8271739,126.2,126.18,0.17]
[1719203102414,0.8271739,126.2,126.18,8.0949]
[1719203102810,0.8271739,126.2,126.17,7.9254]
[1719203103128,0.8271739,126.2,126.16,8.2662]
[1719203103437,0.8271739,126.2,126.16,7.926]
[1719203105208,0.8271739,126.2,126.14,7.9273]
[1719203105718,0.8271739,126.2,126.15,7.9268]
[1719203105915,0.8271739,126.2,126.16,7.9262]
[1719203106126,0.8271739,126.2,126.17,7.9257]
[1719203106308,0.8271739,126.2,126.16,7.9261]
[1719203108539,0.8271739,126.2,126.17,7.9256]
[1719203108738,0.8271739,126.2,126.14,19.8192]
[1719203109042,0.8271739,126.2,126.17,7.9256]
[1719203109732,0.8271739,126.2,126.15,0.34]
[1719203110033,0.8271739,126.2,126.17,7.9255]
[1719203111035,0.8271739,126.2,126.18,7.9251]
[1719203111239,0.8271739,126.2,126.19,7.9245]
[1719203111443,0.8271739,126.2,126.19,8.0945]
[1719203111615,0.8271739,126.2,126.19,24.2005]
[1719203112629,0.8271739,126.2,126.19,30.5405]
[1719203114746,0.8271739,126.2,126.19,24.2005]
[1719203115744,0.8271739,126.2,126.19,7.9245]
[1719203116639,0.8271739,126.2,126.18,7.9248]
[1719203116825,0.8271739,126.2,126.19,1.5830463]
[1719203117152,0.8271739,126.2,126.14,61.2685]
[1719203117318,0.8271739,126.2,126.16,7.9263]
[1719203117520,0.8271739,126.2,126.14,61.2685]
[1719203118315,0.8271739,126.2,126.18,7.9251]
[1719203118634,0.8271739,126.2,126.19,7.9245]
[1719203119337,0.8271739,126.2,126.18,7.9249]
[1719203119838,0.8271739,126.2,126.14,22.4298]
[1719203120146,0.8271739,126.2,126.16,7.926]
[1719203120511,0.8271739,126.2,126.17,7.9258]
[1719203121020,0.8271739,126.2,126.19,7.9245]
[1719203121233,0.8271739,126.2,126.16,19.8148]
[1719203121434,0.8271739,126.2,126.19,7.9245]
[1719203121616,0.8271739,126.2,126.19,8.0945]
[1719203121833,0.8271739,126.2,126.19,8.2645]
[1719203122441,0.8271739,126.2,126.18,7.9249]
[1719203122625,0.8271739,126.2,126.19,7.9245]
[1719203125538,0.8271739,126.2,126.19,8.0945]
[1719203125740,0.8271739,126.2,126.19,28.0758]
[1719203125952,0.8271739,126.2,126.19,29.6610531]
[1719203126957,0.8271739,126.2,126.19,28.0758]
[1719203131053,0.8271739,126.2,126.19,128.0758]
[1719203131430,0.8271739,126.2,126.19,148.0758]
[1719203132145,6.0311,126.29,126.24,7.9213]
[1719203133870,6.0311,126.29,126.25,0.17]
[1719203134038,6.0311,126.29,126.26,7.9197]
[1719203134955,6.8582739,126.33,126.25,0.17]
[1719203135138,7.68503421,126.33,126.26,7.9196]
[1719203135343,6.8582739,126.33,126.26,7.9196]
[1719203136446,6.8582739,126.33,126.27,7.9193]
[1719203137955,6.8582739,126.33,126.26,7.9199]
[1719203138260,6.8582739,126.33,126.25,0.17]
[1719203138667,0.8271739,126.33,126.3,14.2476]
[1719203138963,0.8271739,126.33,126.31,6.33]
[1719203139966,0.8271739,126.33,126.3,6.33]
[1719203141658,0.8271739,126.33,126.26,21.9171]
[1719203141964,0.8271739,126.33,126.29,6.33]
[1719203142151,7.1571739,126.33,126.25,19.8017]
[1719203142338,7.1571739,126.33,126.27,6.33]
[1719203142339,0.8271739,126.33,126.27,6.33]
[1719203142663,6.33,126.32,126.26,7.9198]
[1719203142845,6.33,126.32,126.26,14.2498]
[1719203143346,6.33,126.32,126.26,7.9198]
[1719203143575,6.33,126.32,126.27,7.9195]
[1719203144056,6.33,126.32,126.28,7.9187]
[1719203144241,7.1571739,126.33,126.28,7.9187]
[1719203144441,0.8271739,126.33,126.29,14.2481]
[1719203144654,0.8271739,126.33,126.29,7.9181]
[1719203144964,0.8271739,126.33,126.29,7.9179]
[1719203145351,0.8271739,126.33,126.3,7.9172]
[1719203145971,0.8271739,126.33,126.29,7.918]
[1719203148863,0.8271739,126.33,126.3,7.9175]
[1719203149961,0.8271739,126.33,126.28,0.17]